fUSD/lending_fUSD_20260605
["ID","MTS","AMOUNT","RATE_DAILY","PERIOD"]
[424182825,1780632667000,-300.0,0.00035138,2]
[424182823,1780632667000,-300.0,0.00035138,2]
[424182814,1780632667000,-3206.51250246,0.00035138,2]
[424182815,1780632667000,-300.0,0.00035138,2]
[424182824,1780632667000,-325.25659743,0.00035138,2]
[424182812,1780632667000,-606.01943079,0.00035138,2]
[424182819,1780632667000,-302.57479324,0.00035138,2]
[424182818,1780632667000,-727.95528898,0.00035138,2]
[424182822,1780632667000,-300.0,0.00035138,2]
[424182821,1780632667000,-301.35684721,0.00035138,2]
[424182820,1780632667000,-553.85922869,0.00035138,2]
[424182806,1780632667000,-1097.74908549,0.00035138,2]
[424182852,1780632667000,-300.0,0.00035138,2]
[424182856,1780632667000,-310.66121846,0.00035138,2]
[424182854,1780632667000,-300.0,0.00035138,2]
[424182891,1780632667000,-300.0,0.00035138,2]
[424182893,1780632667000,-344.84564358,0.00035138,2]
[424182895,1780632667000,-599.23664749,0.00035138,2]
[424182898,1780632667000,-866.62523856,0.00035138,2]
[424182894,1780632667000,-528.25355298,0.00035138,2]
[424182897,1780632667000,-951.46597211,0.00035138,2]
[424182896,1780632667000,-300.0,0.00035138,2]
[424182899,1780632667000,-1801.88721781,0.00035138,2]
[424182900,1780632667000,-300.0,0.00035138,2]
[424182910,1780632667000,-718.0,0.00035259,30]
[424182901,1780632667000,-7347.406,0.00035158,2]
[424182905,1780632667000,-1231.06,0.000352,30]
[424182903,1780632667000,-152.0,0.00035189,7]
[424182906,1780632667000,-231.45,0.000352,17]
[424182907,1780632667000,-311.0,0.000352,2]
[424182904,1780632667000,-152.0,0.00035189,7]
[424182909,1780632667000,-315.0,0.000352,2]
[424182908,1780632667000,-1000.0,0.000352,2]
[424182912,1780632667000,-7347.406,0.00035282,2]
[424182918,1780632667000,-524.80179055,0.00035365,7]
[424182911,1780632667000,-152.0,0.0003526,7]
[424182915,1780632667000,-1915.78997892,0.00035341,2]
[424182913,1780632667000,-1812.24458297,0.00035341,2]
[424182916,1780632667000,-1458.92677483,0.00035346,2]
[424182917,1780632667000,-1498.62762238,0.00035346,2]
[424182914,1780632667000,-1652.75496702,0.00035341,2]
[424182860,1780632667000,-1097.74908549,0.00035138,2]
[424182892,1780632667000,-1080.21357232,0.00035138,2]
[424182890,1780632667000,-300.0,0.00035138,2]
[424182902,1780632667000,-152.0,0.00035189,7]
[424182889,1780632667000,-300.0,0.00035138,2]
[424182888,1780632667000,-300.0,0.00035138,2]
[424182862,1780632667000,-300.0,0.00035138,2]
[424182857,1780632667000,-300.0,0.00035138,2]
[424182863,1780632667000,-300.0,0.00035138,2]
[424182865,1780632667000,-300.0,0.00035138,2]
[424182875,1780632667000,-300.0,0.00035138,2]
[424182864,1780632667000,-300.0,0.00035138,2]
[424182874,1780632667000,-300.0,0.00035138,2]
[424182866,1780632667000,-300.0,0.00035138,2]
[424182869,1780632667000,-300.0,0.00035138,2]
[424182867,1780632667000,-300.0,0.00035138,2]
[424182868,1780632667000,-493.96494702,0.00035138,2]
[424182873,1780632667000,-300.0,0.00035138,2]
[424182870,1780632667000,-301.83893348,0.00035138,2]
[424182859,1780632667000,-300.0,0.00035138,2]
[424182872,1780632667000,-606.01943079,0.00035138,2]
[424182871,1780632667000,-300.0,0.00035138,2]
[424182885,1780632667000,-300.0,0.00035138,2]
[424182887,1780632667000,-302.11252655,0.00035138,2]
[424182880,1780632667000,-727.95528898,0.00035138,2]
[424182884,1780632667000,-301.35684721,0.00035138,2]
[424182882,1780632667000,-302.57479324,0.00035138,2]
[424182886,1780632667000,-300.0,0.00035138,2]
[424182876,1780632667000,-3206.51250246,0.00035138,2]
[424182878,1780632667000,-1069.74260505,0.00035138,2]
[424182883,1780632667000,-300.0,0.00035138,2]
[424182879,1780632667000,-535.40148659,0.00035138,2]
[424182877,1780632667000,-363.30690527,0.00035138,2]
[424182881,1780632667000,-300.0,0.00035138,2]
[424182960,1780632668000,-300.0,0.00035608,38]
[424182957,1780632668000,-2106.0,0.00035589,120]
[424182958,1780632668000,-867.0,0.00035589,120]
[424182951,1780632668000,-200.0,0.00035537,5]
[424182955,1780632668000,-200.0,0.00035582,5]
[424182952,1780632668000,-200.0,0.00035538,5]
[424182950,1780632668000,-200.0,0.00035537,5]
[424182956,1780632668000,-1800.54510551,0.00035589,120]
[424182959,1780632668000,-300.0,0.000356,10]
[424182954,1780632668000,-15364.33,0.00035551,30]
[424182961,1780632668000,-32314.50863143,0.0003561,2]
[424182953,1780632668000,-396.01,0.00035549,2]
[424182963,1780632668000,-150.0,0.00035616,120]
[424182970,1780632668000,-152.440014,0.00035616,2]
[424182964,1780632668000,-1000.0,0.00035616,120]
[424182965,1780632668000,-500.0,0.00035616,7]
[424182967,1780632668000,-364.26670244,0.00035616,7]
[424182969,1780632668000,-151.0,0.00035616,5]
[424182966,1780632668000,-500.0,0.00035616,7]
[424182968,1780632668000,-151.0,0.00035616,5]
[424182972,1780632668000,-643.99,0.00035616,2]
[424182982,1780632668000,-1063.0,0.00035807,3]
[424182983,1780632668000,-500.0,0.00035816,14]
[424182984,1780632668000,-200.0,0.00035861,2]
[424182973,1780632668000,-200.0,0.00035619,5]
[424182976,1780632668000,-150.0,0.000357,120]
[424182949,1780632668000,-200.0,0.00035536,5]
[424182962,1780632668000,-2000.0,0.00035616,30]
[424182936,1780632668000,-3231.67,0.00035491,120]
[424182977,1780632668000,-200.607912,0.000357,12]
[424182941,1780632668000,-200.0,0.000355,10]
[424182922,1780632668000,-1001.0,0.00035414,30]
[424182921,1780632668000,-3302.0,0.00035414,30]
[424182920,1780632668000,-588.0,0.00035414,30]
[424182919,1780632668000,-7347.406,0.00035407,2]
[424182925,1780632668000,-426.0,0.00035416,30]
[424182924,1780632668000,-535.0,0.00035414,30]
[424182929,1780632668000,-501.98780834,0.00035445,2]
[424182926,1780632668000,-216.0,0.00035416,30]
[424182928,1780632668000,-688.0,0.00035416,30]
[424182927,1780632668000,-2091.0,0.00035416,30]
[424182923,1780632668000,-1818.0,0.00035414,30]
[424182934,1780632668000,-1955.998072,0.00035481,30]
[424182935,1780632668000,-1955.998072,0.00035481,30]
[424182931,1780632668000,-500.0,0.0003547,2]
[424182932,1780632668000,-1000.0,0.0003547,2]
[424182930,1780632668000,-264.57,0.0003546,69]
[424182933,1780632668000,-1955.998072,0.00035481,30]
[424182937,1780632668000,-151.0,0.00035497,14]
[424182948,1780632668000,-185.01,0.00035532,2]
[424182947,1780632668000,-7347.406,0.00035532,2]
[424182940,1780632668000,-16992.64812045,0.000355,30]
[424182943,1780632668000,-1139.0,0.00035503,30]
[424182945,1780632668000,-2760.0,0.00035503,30]
[424182942,1780632668000,-733.0,0.00035503,30]
[424182939,1780632668000,-269.12,0.000355,14]
[424182938,1780632668000,-160.0,0.000355,14]
[424182944,1780632668000,-531.0,0.00035503,30]
[424182946,1780632668000,-2555.0,0.00035503,30]
[424182979,1780632668000,-153.99245409,0.0003575,120]
[424183029,1780632668000,-7347.406,0.0003603,2]
[424182978,1780632668000,-500.0,0.00035743,11]
[424183013,1780632668000,-264.58,0.000359,98]
[424183012,1780632668000,-150.0,0.00035899,2]
[424183015,1780632668000,-7347.406,0.00035906,2]
[424183016,1780632668000,-150.0,0.00035951,2]
[424183014,1780632668000,-550.98863392,0.000359,3]
[424183018,1780632668000,-500.0,0.00035951,2]
[424183017,1780632668000,-150.0,0.00035951,2]
[424183019,1780632668000,-500.0,0.00035951,2]
[424183039,1780632668000,-350.0,0.0003619,2]
[424183021,1780632668000,-400.0,0.00035951,2]
[424183020,1780632668000,-400.0,0.00035951,2]
[424183024,1780632668000,-3455.64499375,0.00036,5]
[424183031,1780632668000,-25000.0,0.00036097,10]
[424183030,1780632668000,-2037.72,0.00036096,120]
[424183025,1780632668000,-217.07711029,0.00036,60]
[424183022,1780632668000,-409.20085646,0.00035951,2]
[424183027,1780632668000,-1711.94,0.00036,30]
[424183023,1780632668000,-167.63194436,0.0003599,14]
[424183026,1780632668000,-318.07,0.00036,14]
[424183033,1780632668000,-7347.406,0.00036155,2]
[424183032,1780632668000,-4473.9,0.00036153,30]
[424183035,1780632668000,-727.0,0.00036164,2]
[424183036,1780632668000,-1062592.7839,0.00036167,30]
[424183038,1780632668000,-2098.1,0.00036173,30]
[424183034,1780632668000,-151.96771095,0.00036164,120]
[424183037,1780632668000,-302.61417736,0.00036173,7]
[424182971,1780632668000,-181.79,0.00035616,30]
[424183002,1780632668000,-500.0,0.00035861,2]
[424183009,1780632668000,-500.0,0.0003587,2]
[424183028,1780632668000,-150.0,0.00036027,120]
[424183004,1780632668000,-500.0,0.00035861,2]
[424183003,1780632668000,-500.0,0.00035861,2]
[424182974,1780632668000,-200.0,0.00035633,5]
[424182981,1780632668000,-7347.406,0.00035781,2]
[424182975,1780632668000,-7347.406,0.00035656,2]
[424182980,1780632668000,-150.0,0.00035753,120]
[424182986,1780632668000,-200.0,0.00035861,2]
[424182997,1780632668000,-200.0,0.00035861,2]
[424182985,1780632668000,-200.0,0.00035861,2]
[424183000,1780632668000,-200.0,0.00035861,2]
[424182995,1780632668000,-200.0,0.00035861,2]
[424182992,1780632668000,-200.0,0.00035861,2]
[424182996,1780632668000,-200.0,0.00035861,2]
[424182999,1780632668000,-200.0,0.00035861,2]
[424182998,1780632668000,-200.0,0.00035861,2]
[424182990,1780632668000,-200.0,0.00035861,2]
[424182989,1780632668000,-200.0,0.00035861,2]
[424183006,1780632668000,-500.0,0.00035861,2]
[424183008,1780632668000,-541.0,0.00035861,2]
[424183007,1780632668000,-500.0,0.00035861,2]
[424183011,1780632668000,-150.0,0.0003589,120]
[424183010,1780632668000,-1000.0,0.0003587,2]
[424183001,1780632668000,-169.0,0.00035861,2]
[424183005,1780632668000,-500.0,0.00035861,2]
[424182994,1780632668000,-200.0,0.00035861,2]
[424182991,1780632668000,-200.0,0.00035861,2]
[424182988,1780632668000,-200.0,0.00035861,2]
[424182987,1780632668000,-200.0,0.00035861,2]
[424182993,1780632668000,-200.0,0.00035861,2]
[424183084,1780632669000,-23226.76,0.00036635,10]
[424183089,1780632669000,-159.20318347,0.0003674,30]
[424183082,1780632669000,-1592.0,0.00036555,11]
[424183090,1780632669000,-1592.0,0.00036744,11]
[424183080,1780632669000,-7347.406,0.00036529,2]
[424183091,1780632669000,-2321.0,0.00036744,11]
[424183063,1780632669000,-800.0,0.00036431,13]
[424183081,1780632669000,-500.0,0.00036548,120]
[424183092,1780632669000,-164.0,0.00036747,11]
[424183079,1780632669000,-350.0,0.00036526,2]
[424183073,1780632669000,-64025.64113899,0.000365,15]
[424183072,1780632669000,-1592.0,0.00036488,11]
[424183083,1780632669000,-2531.07,0.00036577,10]
[424183078,1780632669000,-158.36504,0.00036504,13]
[424183086,1780632669000,-500.0,0.0003669,30]
[424183100,1780632669000,-349.86786036,0.0003681,2]
[424183085,1780632669000,-7347.406,0.00036654,2]
[424183087,1780632669000,-2744.67685895,0.000367,30]
[424183102,1780632669000,-2571.07,0.00036842,10]
[424183104,1780632669000,-850.0,0.0003686,3]
[424183093,1780632669000,-264.58,0.0003678,120]
[424183103,1780632669000,-1592.0,0.00036847,11]
[424183105,1780632669000,-212.0,0.0003686,3]
[424183095,1780632669000,-230.43459689,0.000368,30]
[424183098,1780632669000,-8544.81739265,0.000368,30]
[424183096,1780632669000,-8544.81739266,0.000368,30]
[424183094,1780632669000,-164.59614064,0.000368,30]
[424183097,1780632669000,-8544.81739265,0.000368,30]
[424183101,1780632669000,-2534.46,0.00036811,10]
[424183075,1780632669000,-204.97464472,0.000365,16]
[424183088,1780632669000,-300.0,0.00036733,42]
[424183074,1780632669000,-174.18903343,0.000365,16]
[424183041,1780632669000,-160.0,0.000362,16]
[424183077,1780632669000,-179.49505156,0.000365,16]
[424183043,1780632669000,-154.83409157,0.00036236,60]
[424183045,1780632669000,-833.92535152,0.00036262,2]
[424183099,1780632669000,-164.0,0.00036808,11]
[424183042,1780632669000,-2534.46,0.00036215,10]
[424183040,1780632669000,-245.74,0.000362,16]
[424183055,1780632669000,-800.0,0.00036431,13]
[424183047,1780632669000,-7347.406,0.0003628,2]
[424183060,1780632669000,-800.0,0.00036431,13]
[424183058,1780632669000,-800.0,0.00036431,13]
[424183056,1780632669000,-800.0,0.00036431,13]
[424183048,1780632669000,-480.34,0.00036301,7]
[424183059,1780632669000,-800.0,0.00036431,13]
[424183057,1780632669000,-800.0,0.00036431,13]
[424183061,1780632669000,-800.0,0.00036431,13]
[424183076,1780632669000,-160.0,0.000365,16]
[424183046,1780632669000,-1250.73,0.00036277,2]
[424183052,1780632669000,-7347.406,0.00036404,2]
[424183051,1780632669000,-51350.0,0.000364,30]
[424183049,1780632669000,-264.58,0.0003634,114]
[424183054,1780632669000,-800.0,0.00036431,13]
[424183050,1780632669000,-500.0,0.00036357,12]
[424183062,1780632669000,-800.0,0.00036431,13]
[424183066,1780632669000,-800.0,0.00036431,13]
[424183064,1780632669000,-800.0,0.00036431,13]
[424183068,1780632669000,-800.0,0.00036431,13]
[424183067,1780632669000,-800.0,0.00036431,13]
[424183065,1780632669000,-800.0,0.00036431,13]
[424183069,1780632669000,-25000.0,0.00036436,10]
[424183070,1780632669000,-1250.73,0.00036467,2]
[424183071,1780632669000,-485.12669354,0.00036484,7]
[424183053,1780632669000,-800.0,0.00036431,13]
[424183106,1780632669000,-1609.0,0.00036878,11]
[424183044,1780632669000,-668.65185756,0.00036262,2]
[424183109,1780632669000,-1592.0,0.00036966,11]
[424183143,1780632669000,-356.89064771,0.00037046,2]
[424183147,1780632669000,-2002.5809,0.0003705,2]
[424183148,1780632669000,-976.755637,0.00037057,120]
[424183146,1780632669000,-96752.24911089,0.0003705,2]
[424183149,1780632669000,-554.4033122,0.00037057,120]
[424183144,1780632669000,-578192.75130148,0.0003705,2]
[424183151,1780632669000,-730.5599739,0.00037057,120]
[424183154,1780632669000,-242.963508,0.00037057,120]
[424183152,1780632669000,-239.1111371,0.00037057,120]
[424183155,1780632669000,-152.4350225,0.00037057,120]
[424183153,1780632669000,-500.0,0.00037057,120]
[424183156,1780632669000,-500.0,0.00037057,120]
[424183150,1780632669000,-190.4122487,0.00037057,120]
[424183158,1780632669000,-890.499109,0.00037057,120]
[424183164,1780632669000,-354.2584269,0.00037057,120]
[424183163,1780632669000,-571.1519785,0.00037057,120]
[424183160,1780632669000,-163.5704502,0.00037057,120]
[424183108,1780632669000,-350.0,0.00036943,3]
[424183172,1780632669000,-159.20318347,0.00037151,30]
[424183173,1780632669000,-1000.0,0.000372,120]
[424183170,1780632669000,-437.14375363,0.00037072,30]
[424183174,1780632669000,-214.02898804,0.000372,120]
[424183162,1780632669000,-500.0,0.00037057,120]
[424183145,1780632669000,-1228.5703,0.0003705,2]
[424183161,1780632669000,-928.241047,0.00037057,120]
[424183159,1780632669000,-892.8568118,0.00037057,120]
[424183157,1780632669000,-500.0,0.00037057,120]
[424183166,1780632669000,-500.0,0.00037057,120]
[424183165,1780632669000,-500.0,0.00037057,120]
[424183167,1780632669000,-791.896713,0.00037057,120]
[424183168,1780632669000,-214.34375214,0.00037057,30]
[424183169,1780632669000,-1592.0,0.00037064,11]
[424183138,1780632669000,-150.0,0.00037001,2]
[424183171,1780632669000,-63137.35449758,0.000371,2]
[424183134,1780632669000,-200.0,0.00037,15]
[424183141,1780632669000,-1357.0,0.00037001,2]
[424183107,1780632669000,-1592.0,0.00036932,11]
[424183110,1780632669000,-500.0,0.00036972,12]
[424183111,1780632669000,-2571.07,0.00036972,10]
[424183112,1780632669000,-2321.0,0.00036974,11]
[424183116,1780632669000,-1000.0,0.00036986,120]
[424183118,1780632669000,-1000.0,0.00036986,120]
[424183113,1780632669000,-1000.0,0.00036986,120]
[424183114,1780632669000,-1000.0,0.00036986,120]
[424183117,1780632669000,-1000.0,0.00036986,120]
[424183128,1780632669000,-33249.0,0.00037,81]
[424183121,1780632669000,-1000.0,0.00036986,120]
[424183123,1780632669000,-2434.577,0.00036999,47]
[424183125,1780632669000,-18495.70618945,0.00037,5]
[424183119,1780632669000,-1000.0,0.00036986,120]
[424183115,1780632669000,-1000.0,0.00036986,120]
[424183124,1780632669000,-2934.99167234,0.00037,15]
[424183133,1780632669000,-186.3104872,0.00037,2]
[424183139,1780632669000,-150.0,0.00037001,2]
[424183136,1780632669000,-150.0,0.00037001,2]
[424183135,1780632669000,-1231.06,0.00037,30]
[424183122,1780632669000,-1592.0,0.00036993,11]
[424183140,1780632669000,-3553.0,0.00037001,2]
[424183131,1780632669000,-151.0,0.00037,60]
[424183137,1780632669000,-150.0,0.00037001,2]
[424183132,1780632669000,-304.184613,0.00037,120]
[424183130,1780632669000,-7400.0,0.00037,10]
[424183129,1780632669000,-1000.0,0.00037,10]
[424183126,1780632669000,-755.95134166,0.00037,10]
[424183127,1780632669000,-5023.728131,0.00037,30]
[424183120,1780632669000,-620.13497927,0.00036986,120]
[424183142,1780632669000,-525.0,0.00037001,2]
[424183216,1780632670000,-150.0,0.00037517,120]
[424183215,1780632670000,-1369.62890625,0.00037507,2]
[424183219,1780632670000,-172.78640974,0.00037519,2]
[424183218,1780632670000,-150.0,0.00037517,120]
[424183213,1780632670000,-3835.0,0.000375,120]
[424183209,1780632670000,-154.58600962,0.00037463,2]
[424183212,1780632670000,-401.0,0.000375,2]
[424183220,1780632670000,-159.20318346,0.00037534,30]
[424183222,1780632670000,-154.58600962,0.00037563,2]
[424183221,1780632670000,-159.20318347,0.00037534,30]
[424183210,1780632670000,-10089.33626068,0.000375,120]
[424183211,1780632670000,-686.29,0.000375,120]
[424183217,1780632670000,-158.69337599,0.00037517,120]
[424183234,1780632670000,-2321.0,0.00037601,11]
[424183223,1780632670000,-401.0,0.00037572,2]
[424183225,1780632670000,-152.0,0.00037585,30]
[424183224,1780632670000,-377.0,0.00037576,2]
[424183227,1780632670000,-500.0,0.00037587,13]
[424183226,1780632670000,-152.0,0.00037585,30]
[424183228,1780632670000,-2000.0,0.00037589,30]
[424183230,1780632670000,-401.0,0.00037596,2]
[424183235,1780632670000,-1592.0,0.00037619,11]
[424183232,1780632670000,-51350.0,0.000376,30]
[424183233,1780632670000,-175132.93,0.000376,2]
[424183229,1780632670000,-4421.96119872,0.0003759,2]
[424183231,1780632670000,-1592.0,0.00037597,11]
[424183202,1780632670000,-500.0,0.00037449,2]
[424183237,1780632670000,-377.0,0.00037623,2]
[424183214,1780632670000,-25000.0,0.000375,31]
[424183201,1780632670000,-150.0,0.00037449,2]
[424183190,1780632670000,-784.12078,0.0003732,88]
[424183203,1780632670000,-400.0,0.00037449,2]
[424183239,1780632670000,-2321.0,0.00037633,11]
[424183175,1780632670000,-377.0,0.00037203,2]
[424183181,1780632670000,-401.0,0.00037273,2]
[424183179,1780632670000,-164.0,0.0003726,11]
[424183182,1780632670000,-15364.33,0.00037279,30]
[424183176,1780632670000,-377.0,0.00037207,2]
[424183180,1780632670000,-2321.0,0.00037269,11]
[424183177,1780632670000,-264.58,0.0003721,60]
[424183178,1780632670000,-164.0,0.00037255,11]
[424183184,1780632670000,-2321.0,0.00037294,11]
[424183194,1780632670000,-900.0,0.00037356,60]
[424183195,1780632670000,-500.0,0.00037356,60]
[424183183,1780632670000,-164.0,0.00037281,11]
[424183186,1780632670000,-164.0,0.00037313,11]
[424183204,1780632670000,-407.0,0.00037449,2]
[424183185,1780632670000,-2321.0,0.00037299,11]
[424183187,1780632670000,-784.12077,0.0003732,88]
[424183193,1780632670000,-377.0,0.00037335,2]
[424183189,1780632670000,-784.12078,0.0003732,88]
[424183192,1780632670000,-784.12077,0.0003732,88]
[424183191,1780632670000,-784.12078,0.0003732,88]
[424183197,1780632670000,-377.0,0.00037382,2]
[424183206,1780632670000,-344.07575905,0.00037458,2]
[424183196,1780632670000,-500.0,0.00037356,60]
[424183207,1780632670000,-500.0,0.00037462,120]
[424183205,1780632670000,-84165.614,0.00037452,30]
[424183198,1780632670000,-377.0,0.00037389,2]
[424183200,1780632670000,-401.0,0.00037423,2]
[424183208,1780632670000,-266.87542171,0.00037462,2]
[424183199,1780632670000,-300.0,0.00037415,45]
[424183188,1780632670000,-784.12078,0.0003732,88]
[424183240,1780632670000,-377.0,0.00037642,2]
[424183244,1780632670000,-1273.0,0.00037655,2]
[424183248,1780632670000,-1000.0,0.0003767,2]
[424183278,1780632670000,-1000.0,0.000377,2]
[424183277,1780632670000,-1000.0,0.000377,2]
[424183279,1780632670000,-1000.0,0.000377,2]
[424183280,1780632670000,-1000.0,0.000377,2]
[424183283,1780632670000,-1000.0,0.000377,2]
[424183285,1780632670000,-200.0,0.000377,15]
[424183282,1780632670000,-1000.0,0.000377,2]
[424183286,1780632670000,-3313.0,0.000377,7]
[424183276,1780632670000,-1000.0,0.000377,2]
[424183281,1780632670000,-1000.0,0.000377,2]
[424183284,1780632670000,-190.87519934,0.000377,2]
[424183287,1780632670000,-164.0,0.00037704,11]
[424183289,1780632670000,-2321.0,0.00037707,11]
[424183298,1780632670000,-1000.0,0.0003777,2]
[424183297,1780632670000,-500.0,0.0003777,2]
[424183300,1780632670000,-8182.0,0.00037778,120]
[424183299,1780632670000,-8182.0,0.00037778,120]
[424183288,1780632670000,-1592.0,0.00037707,11]
[424183290,1780632670000,-1227.0,0.00037713,2]
[424183291,1780632670000,-419.0,0.00037713,2]
[424183292,1780632670000,-3641.0,0.00037713,2]
[424183296,1780632670000,-1592.0,0.00037768,11]
[424183295,1780632670000,-154.58600962,0.00037763,2]
[424183294,1780632670000,-152.0,0.0003772,30]
[424183293,1780632670000,-259.9625,0.00037717,13]
[424183301,1780632670000,-9061.52280968,0.00037784,2]
[424183304,1780632670000,-250.0,0.00037784,2]
[424183238,1780632670000,-377.0,0.00037624,2]
[424183302,1780632670000,-250.0,0.00037784,2]
[424183275,1780632670000,-1000.0,0.000377,2]
[424183270,1780632670000,-1000.0,0.000377,2]
[424183303,1780632670000,-250.0,0.00037784,2]
[424183271,1780632670000,-1000.0,0.000377,2]
[424183272,1780632670000,-1000.0,0.000377,2]
[424183236,1780632670000,-157.0,0.00037621,2]
[424183241,1780632670000,-264.58,0.0003765,78]
[424183246,1780632670000,-1091.37,0.00037668,30]
[424183243,1780632670000,-152.0,0.00037652,30]
[424183242,1780632670000,-152.0,0.00037652,30]
[424183245,1780632670000,-154.58600962,0.00037663,2]
[424183249,1780632670000,-164.0,0.00037673,11]
[424183251,1780632670000,-2131.24955201,0.00037699,2]
[424183250,1780632670000,-150.0,0.00037694,2]
[424183258,1780632670000,-131626.35139537,0.000377,7]
[424183259,1780632670000,-169.98,0.000377,19]
[424183253,1780632670000,-150.0,0.00037699,120]
[424183260,1780632670000,-1000.0,0.000377,2]
[424183252,1780632670000,-2502.83432011,0.00037699,2]
[424183247,1780632670000,-500.0,0.0003767,2]
[424183254,1780632670000,-160.0,0.000377,2]
[424183255,1780632670000,-176.4,0.000377,2]
[424183267,1780632670000,-1000.0,0.000377,2]
[424183269,1780632670000,-1000.0,0.000377,2]
[424183265,1780632670000,-1000.0,0.000377,2]
[424183268,1780632670000,-1000.0,0.000377,2]
[424183264,1780632670000,-1000.0,0.000377,2]
[424183266,1780632670000,-1000.0,0.000377,2]
[424183273,1780632670000,-1000.0,0.000377,2]
[424183274,1780632670000,-1000.0,0.000377,2]
[424183263,1780632670000,-1000.0,0.000377,2]
[424183261,1780632670000,-1000.0,0.000377,2]
[424183256,1780632670000,-160.0,0.000377,19]
[424183262,1780632670000,-1000.0,0.000377,2]
[424183257,1780632670000,-310.02,0.000377,19]
[424183344,1780632671000,-1000.0,0.00037808,2]
[424183340,1780632671000,-1000.0,0.00037808,2]
[424183349,1780632671000,-1000.0,0.00037808,2]
[424183348,1780632671000,-1000.0,0.00037808,2]
[424183343,1780632671000,-1000.0,0.00037808,2]
[424183345,1780632671000,-1000.0,0.00037808,2]
[424183347,1780632671000,-1000.0,0.00037808,2]
[424183346,1780632671000,-1000.0,0.00037808,2]
[424183337,1780632671000,-1000.0,0.00037808,2]
[424183356,1780632671000,-768.0,0.00037808,30]
[424183342,1780632671000,-1000.0,0.00037808,2]
[424183339,1780632671000,-1000.0,0.00037808,2]
[424183335,1780632671000,-1000.0,0.00037808,2]
[424183360,1780632671000,-768.0,0.00037808,30]
[424183350,1780632671000,-1000.0,0.00037808,2]
[424183351,1780632671000,-570.8485447,0.00037808,2]
[424183352,1780632671000,-781.0,0.00037808,30]
[424183354,1780632671000,-768.0,0.00037808,30]
[424183362,1780632671000,-768.0,0.00037808,30]
[424183361,1780632671000,-768.0,0.00037808,30]
[424183355,1780632671000,-768.0,0.00037808,30]
[424183353,1780632671000,-768.0,0.00037808,30]
[424183363,1780632671000,-768.0,0.00037808,30]
[424183357,1780632671000,-768.0,0.00037808,30]
[424183358,1780632671000,-768.0,0.00037808,30]
[424183359,1780632671000,-768.0,0.00037808,30]
[424183336,1780632671000,-1000.0,0.00037808,2]
[424183341,1780632671000,-1000.0,0.00037808,2]
[424183333,1780632671000,-1000.0,0.00037808,2]
[424183325,1780632671000,-163.0,0.000378,7]
[424183330,1780632671000,-175132.93,0.000378,2]
[424183311,1780632671000,-1479.63722076,0.00037788,30]
[424183309,1780632671000,-8185.28,0.00037788,120]
[424183307,1780632671000,-8182.0,0.00037788,120]
[424183308,1780632671000,-8182.0,0.00037788,120]
[424183306,1780632671000,-8182.0,0.00037788,120]
[424183313,1780632671000,-8182.0,0.00037798,120]
[424183310,1780632671000,-386.52401027,0.00037788,50]
[424183305,1780632671000,-254.47008574,0.00037784,2]